Cogmind - Beta 11.1 @@@ ROGUE MODE // 2022.09.10 @ 23:15:31 Player: Okkudo Result: Destroyed by YI-UF0 with YI-UF0's Doublenader Performance ------------- Evolutions (0) 0 Regions Visited (2) 400 Robots Destroyed (17) 85 Value Destroyed (404) 404 Prototype IDs (0) 0 Alien Tech Used (0) 0 Bonus (0) 0 TOTAL SCORE: 889 Bonus ------- None Cogmind --------- Core Integrity 0/250 Matter 380/400 Energy 100/100 System Corruption 0% Temperature Cool (0) Movement Walking (260) Ox2 Location -10/Mines Parts ------- > --- POWER (1) -------- (None) > --- PROPULSION (2) --- Aluminum Leg > --- UTILITY (2) ------ Large Storage Unit Medium Matter Pod > --- WEAPON (2) ------- Small Laser Light Assault Rifle > --- INVENTORY (15) --- Aluminum Leg Aluminum Leg Visual Processing Unit Sensor Array Signal Interpreter Medium Laser Datajack Mining Laser Peak State ------------ > --- POWER ------------ Ion Engine > --- PROPULSION ------- Aluminum Leg Aluminum Leg > --- UTILITY ---------- Small Storage Unit Large Storage Unit > --- WEAPON ----------- Assault Rifle Light Assault Rifle > --- INVENTORY -------- Light Ion Engine Small Matter Pod Visual Processing Unit Sensor Array Signal Interpreter Medium Laser Small Laser [Rating: 7] Favorites ----------- Power Light Ion Engine Engine Light Ion Engine Propulsion Aluminum Leg Leg Aluminum Leg Utility Large Storage Unit Storage Large Storage Unit Weapon Small Laser Energy Gun Small Laser Ballistic Gun Light Assault Rifle Build | -11 -10 -10 ------- Run | Scr Mat Min Slots Evolved . | . . . Power . | . . . Propulsion . | . . . Utility . | . . . Weapon . | . . . Parts Attached 15 | 4 10 1 Power 2 | 1 1 . Engine 2 | 1 1 . Core . | . . . Reactor . | . . . Propulsion 5 | . 5 . Treads . | . . . Leg 5 | . 5 . Wheel . | . . . Hover . | . . . Flight . | . . . Utility 3 | 1 2 . Device . | . . . Storage 3 | 1 2 . Processor . | . . . Hackware . | . . . Protection . | . . . Artifact . | . . . Weapon 5 | 2 2 1 Energy Gun 2 | . 2 . Energy Cannon . | . . . Ballistic Gun 3 | 2 . 1 Ballistic Cannon . | . . . Launcher . | . . . Special Weapon . | . . . Impact Weapon . | . . . Slashing Weapon . | . . . Piercing Weapon . | . . . Special Melee Weapon . | . . . Unidentified Prototypes . | . . . Parts Lost 5 | . 3 2 Power 1 | . . 1 Propulsion 2 | . 1 1 Utility . | . . . Weapon 2 | . 2 . Highest Loss Streak 3 | . 3 2 To Critical Strikes . | . . . Average Slot Usage (%) 88 | . 84 100 Engine 14 | . 14 14 Leg 24 | . 23 28 Storage 20 | . 17 28 Energy Gun 14 | . 10 24 Ballistic Gun 12 | . 16 3 Naked Turns . | . . . Heaviest Build 28 | 13 28 28 Greatest Support 20 | 3 20 20 Greatest Overweight (x) 4 | 4 4 2 Average Overweight (x) . | 1 . 1 Largest Inventory Capacity 15 | 8 15 15 Average Capacity 12 | 7 11 15 Most Carried 10 | 7 10 8 Average Carried 6 | 4 6 7 Final Capacity 15 | 8 15 15 Final Carried 8 | 4 7 8 Class Distribution -------------------- 93% | Mutant 6% | Scavenger-Mutant Dominant Class ---------------- Mutant | -10/Materials Mutant | -10/Mines Resources | -11 -10 -10 ----------- Run | Scr Mat Min Matter Collected 594 | 252 331 11 Remotely . | . . . Salvage Created 630 | 80 521 29 Parts 33 | 1 28 4 Haulers Intercepted 1 | . 1 . Recyclers Shooed . | . . . Parts Field Recycled . | . . . Retrieved Matter . | . . . Parts Self-Destructed . | . . . Prevented . | . . . Kills | -11 -10 -10 ------- Run | Scr Mat Min Combat Hostiles Destroyed 14 | . 12 2 Guns 14 | . 12 2 Classes Destroyed 5 | 1 4 . Hauler 1 | . 1 . Recycler 1 | 1 . . Watcher 1 | . 1 . Swarmer 4 | . 2 2 Grunt 10 | . 10 . Best Kill Streak 4 | 1 4 2 Combat Bots Only 3 | . 3 2 Max Kills in Single Turn 1 | 1 1 1 Gunslinging . | . . . Exploded . | . . . Melee . | . . . Uniques/NPCs Destroyed . | . . . Combat | -11 -10 -10 -------- Run | Scr Mat Min Damage Taken 979 | . 745 234 Core 265 | . 196 69 Absorbed by Shields . | . . . Core Remaining (%) 100 | 100 . . Volleys Fired 61 | 3 50 8 Largest 2 | 2 2 2 Hottest 90 | 40 90 90 Shots Fired 118 | 6 96 16 Gun 118 | 6 96 16 Cannon . | . . . Launcher . | . . . Special . | . . . Kinetic 74 | 6 68 . Thermal 44 | . 28 16 Explosive . | . . . Electromagnetic . | . . . Robot Hit Streak 7 | 2 7 5 Robot Miss Streak 4 | 1 4 2 Penetration Max . | . . . Secondary Targets 1 | . 1 . Max Gunslinging Chain 1 | . 1 . Shots Hit Robots 68 | 3 56 9 Core Hits 30 | 2 26 2 Critical Kills . | . . . Critical Parts Destroyed 1 | . 1 . Critical Strikes 2 | . 2 . Burn 1 | . 1 . Destroy 1 | . 1 . Melee Attacks . | . . . Impact . | . . . Slashing . | . . . Piercing . | . . . Sneak Attacks . | . . . Combat Hostiles . | . . . Follow-up Attacks . | . . . Damage Inflicted 735 | 27 601 107 Guns 730 | 27 596 107 Cannons . | . . . Explosions . | . . . Melee . | . . . Ramming 5 | . 5 . Kinetic 436 | 27 409 . Thermal 294 | . 187 107 Explosive . | . . . Electromagnetic . | . . . Impact . | . . . Slashing . | . . . Piercing . | . . . Highest Corruption . | . . . Average Corruption . | . . . Corruption Purged . | . . . Corruption Blocked . | . . . Overload Shots . | . . . Overflow Damage . | . . . Projectiles . | . . . Explosions . | . . . Melee . | . . . Knockbacks . | . . . Impact . | . . . Kinetic . | . . . Secondary . | . . . Self-Inflicted Damage . | . . . Shots . | . . . Rammed . | . . . Targets Rammed 1 | . 1 . Kicked 1 | . 1 . Crushed . | . . . Highest Temperature 240 | . 138 240 Average Temperature 59 | . 36 122 Received Heat Transfer 390 | . 390 . Siege Activations . | . . . Robots Corrupted . | . . . Combat Hostiles . | . . . Parts Fried . | . . . Impact Corruptions . | . . . Robots Melted . | . . . Combat Hostiles . | . . . Parts Melted 3 | . 2 1 Heat Transferred 867 | . 582 285 Parts Sabotaged . | . . . Parts Stolen . | . . . Parts Stripped . | . . . Power Chain Reactions . | . . . Missiles Intercepted . | . . . Alert | -11 -10 -10 ------- Run | Scr Mat Min Peak Influence 200 | 5 200 106 Initial 41 | . 3 41 Average 74 | 1 88 56 Maximum Alert Level 1 | . 1 . Low Security (%) 92 | 100 89 100 Level 1 7 | . 10 . Level 2 . | . . . Level 3 . | . . . Level 4 . | . . . Level 5 . | . . . High Security . | . . . Max Security . | . . . Squads Dispatched 6 | . 6 . Investigation 2 | . 2 . Extermination . | . . . Reinforcement 4 | . 4 . Assault . | . . . Garrison . | . . . Intercept . | . . . Searches Triggered . | . . . Construction Impeded . | . . . Haulers Reinforced . | . . . Active Scanning Responses . | . . . Cargo Convoy Interrupts . | . . . Stealth | -11 -10 -10 --------- Run | Scr Mat Min Distress Signals 5 | . 5 . Communications Jammed . | . . . Distress Signals . | . . . Times Spotted 31 | . 26 5 Peak Tracking Total 6 | . 6 3 Tactical Retreats 5 | . 3 2 Traps | -11 -10 -10 ------- Run | Scr Mat Min Traps Triggered . | . . . Indirectly . | . . . Trap Hack Attempts . | . . . Triggered . | . . . Disarmed . | . . . Reprogrammed . | . . . Reused . | . . . Traps Extracted . | . . . Installed . | . . . Triggered . | . . . Machines | -11 -10 -10 ---------- Run | Scr Mat Min Machines Disabled . | . . . Max in Single Turn . | . . . Machines Sabotaged . | . . . Garrisons Compromised . | . . . Overloaded Fab Kills . | . . . Hacking | -11 -10 -10 --------- Run | Scr Mat Min Machines Accessed 3 | . 3 . Terminals 3 | . 3 . Fabricators . | . . . Repair Stations . | . . . Recycling Units . | . . . Scanalyzers . | . . . Garrison Access . | . . . Total Hacks 11 | . 11 . Successful 6 | . 6 . Failed 5 | . 5 . Catastrophic 1 | . 1 . Database Lockouts . | . . . Manual 9 | . 9 . Terminals 11 | . 11 . Fabricators . | . . . Repair Stations . | . . . Recycling Units . | . . . Scanalyzers . | . . . Garrison Access . | . . . Terminal Hacks 4 | . 4 . Branch Access Points 1 | . 1 . Terminal Index 1 | . 1 . Alert Level 1 | . 1 . Locate Traps 1 | . 1 . Fabricator Hacks . | . . . Repair Station Hacks . | . . . Recycling Unit Hacks . | . . . Scanalyzer . | . . . Garrison Access Hacks . | . . . Unauthorized Hacks 2 | . 2 . Terminals 2 | . 2 . Botnet 2 | . 2 . Fabricators . | . . . Repair Stations . | . . . Recycling Units . | . . . Scanalyzers . | . . . Garrison Access . | . . . Data Cores Recovered . | . . . Used . | . . . Hacking Detections 2 | . 2 . Full Trace Events 2 | . 2 . Feedback Events . | . . . Feedback Blocked . | . . . Robot Schematics Acquired . | . . . Robots Built . | . . . Authchips . | . . . Time . | . . . Total Robot Build Rating . | . . . Part Schematics Acquired . | . . . Parts Built . | . . . Authchips . | . . . Time . | . . . Total Part Build Rating . | . . . Parts Repaired . | . . . Time . | . . . Parts Recycled . | . . . Recycled Matter . | . . . Retrieved Matter . | . . . Retrieved Components . | . . . Parts Scanalyzed . | . . . Part Schematics Acquired . | . . . Parts Damaged . | . . . Bothacking | -11 -10 -10 ------------ Run | Scr Mat Min Used RIF Installer . | . . . Robots Hacked . | . . . Non-combat . | . . . Combat . | . . . Robot Hacks Applied . | . . . Relay Couplers Released . | . . . Fabnet Peak Effective % . | . . . Robots Rewired . | . . . Allies Hacked . | . . . Hacks Repelled . | . . . Allies | -11 -10 -10 -------- Run | Scr Mat Min Total Allies . | . . . Largest Group . | . . . Highest-Rated Group . | . . . Highest-Rated Ally . | . . . Total Orders . | . . . Ally Attacks . | . . . Total Damage . | . . . Kills . | . . . Allies Corrupted . | . . . Allies Melted . | . . . Intel | -11 -10 -10 ------- Run | Scr Mat Min Robot Analysis Total . | . . . Derelict Logs Recovered 2 | . . 2 Drone Launches . | . . . Drone Recoveries . | . . . Exploration | -11 -10 -10 ------------- Run | Scr Mat Min Turns Passed 1468 | 77 984 407 Spaces Moved 728 | 44 485 199 Core 94 | 44 50 . Treads . | . . . Legs 634 | . 435 199 Wheels . | . . . Hover . | . . . Flight . | . . . Fastest Speed 50 | 50 120 190 Average Speed 166 | 132 160 190 Slowest Speed 260 | 250 260 260 Overloaded Moves . | . . . Propulsion Burnouts . | . . . Robots Hopped . | . . . Cave-ins Triggered . | . . . Exploration Rate (%) 46 | 2 85 52 Regions Visited 2 Branch Regions 1 Pre-discovered Areas 1 | . . 1 Known Exits Taken 1 | . 1 . Unknown Exits Taken 1 | 1 . . Scrap Searched . | . . . Spaces Dug . | . . . Terrain Destroyed . | . . . Melee . | . . . Projectile . | . . . AOE . | . . . Terrain Rammed . | . . . Walls Destroyed . | . . . Machines Disabled . | . . . Actions | -11 -10 -10 --------- Run | Scr Mat Min Total 874 | 58 604 212 Wait 42 | . 39 3 Move 726 | 43 484 199 Hop . | . . . Pick Up 23 | 8 14 1 Fast Attach . | . . . Attach 11 | 4 7 . Detach 1 | . 1 . Swap 4 | . 3 1 Drop 5 | . 5 . Fire 61 | 3 50 8 Melee . | . . . Ram . | . . . Kick 1 | . 1 . Crush . | . . . Escape Stasis . | . . . Rewire . | . . . Trap . | . . . Miscellaneous . | . . . Route ------- -11/Scrapyard -10/Materials (discovered 3 exits: [*Mat x2] / *Min) -10/Mines History --------- Turn | Location | Event 12 | -11/Scrapyard | Discovered new exit (range 15) 78 | -11/Scrapyard | Entered Materials 306 | -10/Materials | Build established: Mutant 350 | -10/Materials | Met 8R-AWN 388 | -10/Materials | Discovered new exit (range 16) 534 | -10/Materials | Identified exit to Mines 656 | -10/Materials | Core integrity fell below 50% 710 | -10/Materials | Lost 3 parts (1n2w) 847 | -10/Materials | Discovered new exit (range 16) 1062 | -10/Materials | Entered Mines 1114 | -10/Mines | Learned Materials terminal intel 1344 | -10/Mines | Core integrity fell below 20% 1375 | -10/Mines | Learned location of Zion (-7) 1469 | -10/Mines | Destroyed by YI-UF0 with YI-UF0's Doublenader Last Messages --------------- 00989_ R-06 Scavenger collects Flight Unit. 01003_ A-02 Transporter suffers critical hit (Burn). 01031_ Transport Network Coupler melted. 01031_ A-02 Transporter destroyed. 01057_ Acquired Mining Laser. LOCATION=MINES GOAL=ESCAPE Something is scanning the area. 01063_ K-01 Serf collects debris. 01114_ Acquired derelict log, extracted data. Data stored: Materials terminal intel. 01357_ Flight Unit melted. 01357_ S-10 Pest destroyed. 01369_ Acquired 11 matter. 01373_ Acquired Lgt. Assault Rifle. 01375_ Acquired derelict log, extracted data. World map updated: -7/Zion. 01405_ The unstable cave ceiling collapses. 01467_ Aluminum Leg destroyed. 01467_ Lgt. Ion Engine destroyed. Map ----- +----------------------------------------------------+ | ? ###### ##?????????# #?# #???# #?????? | | ? #?????#####?????????? #?# #???# #?????? | | ? ######????????????????????? ?# #???# #?????? | | ??????????????????####??????? # #???# #?????? | | ??????????????????# ###????? ???# #?????? | | ?????????????????## ##???? """ ???# #####?? | | ???????? ??????### ###????# """ ???# #?? | | ????? ???## # ##????# "?? ???##### #?? | | ???? ## ###???# ?? ???????# #?? | | ???? ##???# ???????#### ##? | | ???? !% #????# ?????## #? | | ???? #?????#??????# #? | | ???? # ##???????????# #? | | ????? ###### #???????????## ##? | | ?????## # ??????##g #????????????# ####?? | | ?????? # ? ?????????# ##???########## #????? | | ???????? #?????????## ####????#* #????? | | ???????# ???????????# #########=##########????? | | ????????????????????# = %#?????????????? | | ????????????????????## ##########?????????????? | | ?????????????????????# #??????????????????????? | | ?????????????????????# ######?????????????????? | | ????????????????????## #?????????????? | | ????????????????????# #####?????????????????? | | ?????????????????????# #??????????????????????? | | ????????????????????## @#??????????????????????? | | ????????????????????# #??????????????????????? | | ????????????????????# ##????????????????????? | | ????????????????????## ##???????????????????? | | ?????????????????????# ##??????????????????? | | ?????????????????????## #??????????????????? | | ??????????????????????## #??????????????????? | | ???????????????????????## #??????????????????? | | ????????????????????????# ##?????????????????? | | ????????????????????????# #?????????????????? | | ????????????????????????## #?????????????????? | | ?????????????????????????### ##?????????????????? | | ???????????????????????????####??????????????????? | | ?????????????????????????????????????????????????? | | | | | | | | | | | | | | | | | | | | | | | +----------------------------------------------------+ Best States ------------- Heat Dissipation 25 Energy Generation 10 Energy Capacity 250 Matter Stores 380 Matter Capacity 400 Sight Range 16 Terrain Scan Density 10 Evasion (%) 55 Item Schematics ----------------- None Robot Schematics ------------------ None Fabricated ------------ Nothing Alien Tech Used ----------------- None Achievements -------------- None Challenges ------------ None Game ------ Seed MachineAnalysisFlamer Manual? 0 Play Time 00:12:21 Cumulative 43.5 hours Start 2022.09.10 @ 23:04:35 End 2022.09.10 @ 23:15:31 Sessions 1 Manual Loads 0 Difficulty Rogue Special Mode None Game No. 105 Rogue 105 Adventurer 0 Explorer 0 Win Type - Total 0 Types 0/0/0/0/0/0/0/0/0 Lore% 28 Gallery% 25 Achievement% 23 Wizard Run 0 Options --------- ASCII 0 Keyboard 0 Movement Numpad Keybinds 0 Fullscreen 1 Font 12/Smallcaps Map View 83x54 Tactical HUD 1 Map Filters NONE Filters NONE Steam 1 RUN: c7d58be7-6441-4c01-a220-035077882204